[Event "Reykjavik Open 2022"]
[Site "Reykjavik"]
[Date "2022.04.06"]
[Round "1.24"]
[White "Kull, Florian"]
[Black "Jarmula, Lukasz"]
[Result "0-1"]
[ECO "A28"]
[WhiteElo "2138"]
[BlackElo "2434"]
[Annotator "NA RC"]
[PlyCount "70"]
[EventDate "2022.04.06"]
[EventCountry "ISL"]
[SourceTitle "playchess.com"]
[Source "ChessBase"]
[SourceQuality "1"]
[TimeControl "40/5400+30:1800+30"]

1. c4 {[%emt 0:00:15]} e5 {[%emt 0:00:06]} 2. Nc3 {[%emt 0:00:42]} Nf6 {[%emt 0:00:06]} 3. Nf3 {[%emt 0:00:23]} Nc6 {[%emt 0:00:05]} 4. e3 {[%emt 0:00:41]} Bb4 {[%emt 0:03:15]} 5. Qc2 {[%emt 0:00:51]} Bxc3 {[%emt 0:00:08]} 6. bxc3 {[%emt 0:02:14]} e4 {[%emt 0:02:29]} 7. Nd4 {[%emt 0:04:45]} O-O {[%emt 0:01:53]} 8. Be2 {[%emt 0:02:38]} b6 {[%emt 0:03:28]} 9. g4 {[%emt 0:13:16]} Bb7 {[%emt 0:03:14]} 10. g5 {[%emt 0:07:22]} Ne8 {[%emt 0:00:33]} 11. Ba3 {[%emt 0:01:52]} Nd6 {[%emt 0:04:13]} 12. Rg1 {[%emt 0:06:12]} Ne5 {[%emt 0:10:58]} 13. Nb5 {[%emt 0:19:46]} Nexc4 {[%emt 0:06:58]} 14. Bxc4 {[%emt 0:01:35]} Nxc4 {[%emt 0:00:06]} 15. Bxf8 {[%emt 0:00:17]} Qxf8 {[%emt 0:00:06]} 16. Nxc7 {[%emt 0:05:13]} Rc8 {[%emt 0:05:20]} 17. Nb5 {[%emt 0:00:07]} Ne5 {[%emt 0:00:58]} 18. O-O-O {[%emt 0:04:10]} Ba6 {[%emt 0:05:45]} 19. Qa4 {[%emt 0:03:41]} Bxb5 {[%emt 0:03:18]} 20. Qxb5 {[%emt 0:00:04]} Rc5 {[%emt 0:00:19]} 21. Qb3 {[%emt 0:02:36]} a6 {[%emt 0:00:25]} 22. Kc2 {[%emt 0:08:46]} Qd6 {[%emt 0:06:32]} 23. f4 {[%emt 0:00:26]} Nc4 {[%emt 0:04:04]} 24. a4 {[%emt 0:05:43]} Qd3+ {[%emt 0:05:49]} 25. Kc1 {[%emt 0:00:04]} Nxd2 {[%emt 0:01:14]} 26. Kb2 {[%emt 0:03:28]} Qxe3 {[%emt 0:06:02]} 27. Qc2 {[%emt 0:02:09]} Nc4+ {[%emt 0:06:25]} 28. Kb3 {[%emt 0:00:02]} Rc8 {[%emt 0:02:26]} 29. Rge1 {[%emt 0:01:04]} Qc5 {[%emt 0:00:32]} 30. Qxe4 {[%emt 0:03:35]} Qa3+ {[%emt 0:01:37]} 31. Kc2 {[%emt 0:00:02]} Qxa4+ {[%emt 0:00:17]} 32. Kd3 {[%emt 0:00:21]} Nb2+ {[%emt 0:00:16]} 33. Kd2 {[%emt 0:00:23]} Qxe4 {[%emt 0:01:29]} 34. Rxe4 {[%emt 0:00:03]} Nxd1 {[%emt 0:00:08]} 35. Kxd1 {[%emt 0:00:04]} Kf8 {[%emt 0:00:19]} 0-1

[Event "Reykjavik Open 2022"]
[Site "Reykjavik"]
[Date "2022.04.06"]
[Round "1.25"]
[White "Larkin, Vladyslav"]
[Black "Sigeman, Johan"]
[Result "1-0"]
[ECO "E05"]
[WhiteElo "2399"]
[BlackElo "2136"]
[Annotator "NA RC"]
[PlyCount "55"]
[EventDate "2022.04.06"]
[EventCountry "ISL"]
[SourceTitle "playchess.com"]
[Source "ChessBase"]
[SourceQuality "1"]
[TimeControl "40/5400+30:1800+30"]

1. c4 {[%emt 0:00:04]} e6 {[%emt 0:01:32]} 2. g3 {[%emt 0:00:38]} d5 {[%emt 0:00:30]} 3. Bg2 {[%emt 0:00:05]} Nf6 {[%emt 0:00:16]} 4. Nf3 {[%emt 0:00:25]} Be7 {[%emt 0:01:17]} 5. O-O {[%emt 0:00:21]} O-O {[%emt 0:00:56]} 6. d4 {[%emt 0:00:14]} dxc4 {[%emt 0:04:03]} 7. Ne5 {[%emt 0:01:31]} c5 {[%emt 0:04:12]} 8. dxc5 {[%emt 0:00:37]} Qc7 {[%emt 0:05:19]} 9. Nxc4 {[%emt 0:02:29]} Qxc5 {[%emt 0:07:00]} 10. Nba3 {[%emt 0:04:32]} Rd8 {[%emt 0:04:11]} 11. Bd2 {[%emt 0:13:28]} Nc6 {[%emt 0:05:22]} 12. Rc1 {[%emt 0:00:39]} Qh5 {[%emt 0:03:52]} 13. e3 {[%emt 0:04:45]} Qxd1 {[%emt 0:08:33]} 14. Rfxd1 {[%emt 0:00:05]} Bd7 {[%emt 0:01:51]} 15. Nb5 {[%emt 0:13:54]} Be8 {[%emt 0:05:42]} 16. Nc7 {[%emt 0:18:13]} Rac8 {[%emt 0:00:42]} 17. Nxe8 {[%emt 0:00:06]} Nxe8 {[%emt 0:08:47]} 18. a3 {[%emt 0:01:03]} Nd6 {[%emt 0:11:03]} 19. Kf1 {[%emt 0:01:46]} Nxc4 {[%emt 0:01:44]} 20. Rxc4 {[%emt 0:00:06]} Ne5 {[%emt 0:03:09]} 21. Rxc8 {[%emt 0:00:15]} Rxc8 {[%emt 0:00:02]} 22. Bc3 {[%emt 0:02:44]} Nc4 {[%emt 0:04:10]} 23. Rd7 {[%emt 0:00:51]} Bc5 {[%emt 0:01:53]} 24. Rxb7 {[%emt 0:02:22]} Bb6 {[%emt 0:03:04]} 25. a4 {[%emt 0:01:37]} h6 {[%emt 0:01:57]} 26. Rd7 {[%emt 0:00:56]} Rb8 {[%emt 0:04:32]} 27. b3 {[%emt 0:03:00]} Na5 {[%emt 0:00:52]} 28. b4 {[%emt 0:00:22]} 1-0

[Event "Reykjavik Open 2022"]
[Site "Reykjavik"]
[Date "2022.04.06"]
[Round "1.26"]
[White "De Coninck, Rafael"]
[Black "Thorhallsson, Throstur"]
[Result "1-0"]
[ECO "D78"]
[WhiteElo "2119"]
[BlackElo "2414"]
[Annotator "NA RC"]
[PlyCount "75"]
[EventDate "2022.04.06"]
[EventCountry "ISL"]
[SourceTitle "playchess.com"]
[Source "ChessBase"]
[SourceQuality "1"]
[TimeControl "40/5400+30:1800+30"]

1. d4 {[%emt 0:00:05]} d5 {[%emt 0:01:18]} 2. Nf3 {[%emt 0:00:19]} Nf6 {[%emt 0:00:07]} 3. g3 {[%emt 0:01:39]} c6 {[%emt 0:02:31]} 4. Bg2 {[%emt 0:01:10]} g6 {[%emt 0:02:25]} 5. O-O {[%emt 0:01:55]} Bg7 {[%emt 0:00:05]} 6. b3 {[%emt 0:05:21]} O-O {[%emt 0:00:29]} 7. c4 {[%emt 0:00:38]} Bf5 {[%emt 0:04:03]} 8. e3 {[%emt 0:03:50]} Nbd7 {[%emt 0:05:28]} 9. Bb2 {[%emt 0:04:16]} Qa5 {[%emt 0:01:50]} 10. Qe2 {[%emt 0:04:48]} Qa6 {[%emt 0:03:12]} 11. Nbd2 {[%emt 0:07:06]} Rac8 {[%emt 0:04:04]} 12. Rfc1 {[%emt 0:01:56]} Rfe8 {[%emt 0:03:48]} 13. Nh4 {[%emt 0:04:52]} Bg4 {[%emt 0:01:24]} 14. Qf1 {[%emt 0:04:31]} dxc4 {[%emt 0:06:18]} 15. bxc4 {[%emt 0:06:20]} Nb6 {[%emt 0:07:17]} 16. a4 {[%emt 0:05:17]} Nxa4 {[%emt 0:07:59]} 17. Bc3 {[%emt 0:03:04]} b5 {[%emt 0:02:22]} 18. d5 {[%emt 0:14:51]} Qb6 {[%emt 0:03:46]} 19. Bd4 {[%emt 0:09:36]} c5 {[%emt 0:01:36]} 20. Be5 {[%emt 0:00:19]} Bd7 {[%emt 0:03:40]} 21. Rcb1 {[%emt 0:01:05]} Qa5 {[%emt 0:09:32]} 22. cxb5 {[%emt 0:04:16]} Qxd2 {[%emt 0:01:39]} 23. Rxa4 {[%emt 0:00:11]} g5 {[%emt 0:03:34]} 24. Rb2 {[%emt 0:06:46]} Qxb2 {[%emt 0:04:11]} 25. Bxb2 {[%emt 0:00:19]} gxh4 {[%emt 0:00:04]} 26. Rxa7 {[%emt 0:00:23]} Bf5 {[%emt 0:00:32]} 27. b6 {[%emt 0:01:07]} Rb8 {[%emt 0:00:52]} 28. b7 {[%emt 0:00:27]} Nd7 {[%emt 0:00:23]} 29. Bxg7 {[%emt 0:00:24]} Kxg7 {[%emt 0:00:02]} 30. e4 {[%emt 0:00:18]} Bg6 {[%emt 0:00:13]} 31. Qb5 {[%emt 0:00:18]} Red8 {[%emt 0:00:32]} 32. f4 {[%emt 0:00:55]} f6 {[%emt 0:01:11]} 33. Bh3 {[%emt 0:00:47]} Be8 {[%emt 0:00:06]} 34. Qa5 {[%emt 0:00:22]} c4 {[%emt 0:00:56]} 35. Ra8 {[%emt 0:01:22]} c3 {[%emt 0:00:12]} 36. Qxd8 {[%emt 0:00:28]} Rxd8 {[%emt 0:00:06]} 37. Rxd8 {[%emt 0:00:10]} c2 {[%emt 0:00:27]} 38. Rc8 {[%emt 0:00:09]} 1-0

[Event "Reykjavik Open 2022"]
[Site "Reykjavik"]
[Date "2022.04.06"]
[Round "1.27"]
[White "Thorfinnsson, Bragi"]
[Black "Karlsson, Mikael Johann"]
[Result "1-0"]
[ECO "B23"]
[WhiteElo "2419"]
[BlackElo "2119"]
[Annotator "NA RC"]
[PlyCount "47"]
[EventDate "2022.04.06"]
[EventCountry "ISL"]
[SourceTitle "playchess.com"]
[Source "ChessBase"]
[SourceQuality "1"]
[TimeControl "40/5400+30:1800+30"]

1. e4 {[%emt 0:01:48]} c5 {[%emt 0:01:42]} 2. Nc3 {[%emt 0:02:20]} Nc6 {[%emt 0:01:28]} 3. f4 {[%emt 0:01:15]} g6 {[%emt 0:00:24]} 4. Nf3 {[%emt 0:00:10]} Bg7 {[%emt 0:00:05]} 5. Bb5 {[%emt 0:01:56]} Nd4 {[%emt 0:01:44]} 6. O-O {[%emt 0:00:11]} a6 {[%emt 0:01:30]} 7. Bd3 {[%emt 0:02:09]} b5 {[%emt 0:00:55]} 8. Nxd4 {[%emt 0:01:06]} Bxd4+ {[%emt 0:01:04]} 9. Kh1 {[%emt 0:00:10]} Bb7 {[%emt 0:00:15]} 10. e5 {[%emt 0:03:49]} d6 {[%emt 0:04:40]} 11. Be4 {[%emt 0:02:10]} Bxe4 {[%emt 0:12:53]} 12. Nxe4 {[%emt 0:01:34]} d5 {[%emt 0:00:03]} 13. Ng5 {[%emt 0:06:07]} c4 {[%emt 0:00:03]} 14. e6 {[%emt 0:03:50]} fxe6 {[%emt 0:04:39]} 15. Nxe6 {[%emt 0:00:56]} Qb6 {[%emt 0:00:03]} 16. Qe2 {[%emt 0:02:15]} Bf6 {[%emt 0:02:04]} 17. f5 {[%emt 0:10:08]} Kd7 {[%emt 0:07:06]} 18. d4 {[%emt 0:03:35]} Rc8 {[%emt 0:05:34]} 19. Nc5+ {[%emt 0:06:18]} Ke8 {[%emt 0:01:18]} 20. c3 {[%emt 0:00:36]} Rc6 {[%emt 0:06:10]} 21. Qf3 {[%emt 0:04:58]} Qd8 {[%emt 0:01:57]} 22. Bf4 {[%emt 0:00:55]} h5 {[%emt 0:05:32]} 23. fxg6 {[%emt 0:01:35]} h4 {[%emt 0:00:24]} 24. Rae1 {[%emt 0:04:49]} 1-0

[Event "Reykjavik Open 2022"]
[Site "Reykjavik"]
[Date "2022.04.06"]
[Round "1.28"]
[White "Johannsson, Birkir Isak"]
[Black "Romanishin, Oleg M"]
[Result "1/2-1/2"]
[ECO "D70"]
[WhiteElo "2103"]
[BlackElo "2415"]
[Annotator "NA RC"]
[PlyCount "58"]
[EventDate "2022.04.06"]
[EventCountry "ISL"]
[SourceTitle "playchess.com"]
[Source "ChessBase"]
[SourceQuality "1"]
[TimeControl "40/5400+30:1800+30"]

1. d4 {[%emt 0:00:09]} Nf6 {[%emt 0:00:05]} 2. Nf3 {[%emt 0:00:13]} g6 {[%emt 0:04:52]} 3. Nbd2 {[%emt 0:00:28]} d5 {[%emt 0:00:37]} 4. c4 {[%emt 0:00:10]} c6 {[%emt 0:04:40]} 5. e3 {[%emt 0:00:18]} Bg7 {[%emt 0:00:07]} 6. b4 {[%emt 0:00:18]} O-O {[%emt 0:01:38]} 7. a4 {[%emt 0:02:16]} Nbd7 {[%emt 0:01:48]} 8. Bb2 {[%emt 0:06:11]} e5 {[%emt 0:04:08]} 9. dxe5 {[%emt 0:27:14]} Ng4 {[%emt 0:00:10]} 10. cxd5 {[%emt 0:02:02]} Ndxe5 {[%emt 0:20:34]} 11. Nxe5 {[%emt 0:05:08]} Nxe5 {[%emt 0:02:27]} 12. Qb3 {[%emt 0:01:33]} Qxd5 {[%emt 0:06:06]} 13. Qxd5 {[%emt 0:01:59]} cxd5 {[%emt 0:00:06]} 14. Bd4 {[%emt 0:06:00]} Bf5 {[%emt 0:09:08]} 15. Be2 {[%emt 0:05:21]} a5 {[%emt 0:12:56]} 16. bxa5 {[%emt 0:04:37]} Nd3+ {[%emt 0:00:51]} 17. Bxd3 {[%emt 0:01:32]} Bxd4 {[%emt 0:00:16]} 18. Ra3 {[%emt 0:02:30]} Bc5 {[%emt 0:01:15]} 19. Rb3 {[%emt 0:05:03]} Bxd3 {[%emt 0:00:50]} 20. Rxd3 {[%emt 0:00:07]} Rxa5 {[%emt 0:00:09]} 21. Rxd5 {[%emt 0:01:32]} Rxa4 {[%emt 0:01:40]} 22. O-O {[%emt 0:01:04]} b6 {[%emt 0:00:09]} 23. Nb3 {[%emt 0:01:06]} Rc4 {[%emt 0:00:48]} 24. g3 {[%emt 0:00:48]} Rc8 {[%emt 0:03:29]} 25. Ra1 {[%emt 0:05:08]} Rc3 {[%emt 0:02:59]} 26. Nd4 {[%emt 0:01:13]} Bxd4 {[%emt 0:00:39]} 27. Rxd4 {[%emt 0:01:16]} Rc1+ {[%emt 0:01:36]} 28. Rxc1 {[%emt 0:00:05]} Rxc1+ {[%emt 0:00:08]} 29. Kg2 {[%emt 0:00:01]} h5 {[%emt 0:04:09]} 1/2-1/2

[Event "Reykjavik Open 2022"]
[Site "Reykjavik"]
[Date "2022.04.06"]
[Round "1.29"]
[White "Willow, Jonah B"]
[Black "Zysko, Jan"]
[Result "0-1"]
[ECO "B80"]
[WhiteElo "2365"]
[BlackElo "2108"]
[Annotator "RC"]
[PlyCount "106"]
[EventDate "2022.04.06"]
[EventCountry "ISL"]
[SourceTitle "playchess.com"]
[Source "ChessBase"]
[SourceQuality "1"]
[TimeControl "40/5400+30:1800+30"]

1. e4 {[%emt 0:00:08]} c5 {[%emt 0:00:03]} 2. Nf3 {[%emt 0:00:24]} e6 {[%emt 0:00:35]} 3. d4 {[%emt 0:00:21]} cxd4 {[%emt 0:00:06]} 4. Nxd4 {[%emt 0:00:05]} Nf6 {[%emt 0:00:40]} 5. Nc3 {[%emt 0:01:32]} d6 {[%emt 0:00:05]} 6. h3 {[%emt 0:05:28]} Be7 {[%emt 0:06:58]} 7. g4 {[%emt 0:02:24]} d5 {[%emt 0:03:16]} 8. Bb5+ {[%emt 0:05:07]} Bd7 {[%emt 0:00:38]} 9. exd5 {[%emt 0:01:59]} Nxd5 {[%emt 0:01:03]} 10. Nxd5 {[%emt 0:00:19]} exd5 {[%emt 0:00:03]} 11. O-O {[%emt 0:03:31]} Nc6 {[%emt 0:07:42]} 12. Ne2 {[%emt 0:16:25]} a6 {[%emt 0:09:40]} 13. Ba4 {[%emt 0:01:32]} Ne5 {[%emt 0:03:03]} 14. Bxd7+ {[%emt 0:06:06]} Qxd7 {[%emt 0:00:44]} 15. Nd4 {[%emt 0:03:21]} O-O {[%emt 0:05:14]} 16. Re1 {[%emt 0:06:54]} Nc4 {[%emt 0:04:59]} 17. b3 {[%emt 0:07:49]} Nd6 {[%emt 0:01:16]} 18. Bb2 {[%emt 0:01:20]} Bf6 {[%emt 0:04:10]} 19. Qf3 {[%emt 0:00:16]} Ne4 {[%emt 0:11:45]} 20. Rad1 {[%emt 0:01:38]} Rfe8 {[%emt 0:05:12]} 21. Qg2 {[%emt 0:08:52]} b5 {[%emt 0:05:27]} 22. Re2 {[%emt 0:03:56]} Rac8 {[%emt 0:02:36]} 23. f3 {[%emt 0:06:41]} Ng5 {[%emt 0:04:31]} 24. Rxe8+ {[%emt 0:02:34]} Qxe8 {[%emt 0:02:53]} 25. Kh1 {[%emt 0:04:29]} g6 {[%emt 0:10:21]} 26. Nxb5 {[%emt 0:05:31]} Bxb2 {[%emt 0:03:04]} 27. Nd6 {[%emt 0:00:02]} Qe6 {[%emt 0:00:24]} 28. Nxc8 {[%emt 0:00:01]} Qxc8 {[%emt 0:00:38]} 29. c4 {[%emt 0:00:09]} Be5 {[%emt 0:03:58]} 30. cxd5 {[%emt 0:00:28]} Qc3 {[%emt 0:01:59]} 31. d6 {[%emt 0:01:02]} Ne6 {[%emt 0:01:08]} 32. d7 {[%emt 0:00:07]} Bc7 {[%emt 0:00:19]} 33. Qe2 {[%emt 0:01:07]} Kg7 {[%emt 0:00:23]} 34. Rd3 {[%emt 0:04:01]} Qc1+ {[%emt 0:00:39]} 35. Qd1 {[%emt 0:00:06]} Qf4 {[%emt 0:00:19]} 36. Qd2 {[%emt 0:00:14]} Qg3 {[%emt 0:00:12]} 37. f4 {[%emt 0:00:04]} Qh4 {[%emt 0:01:49]} 38. f5 {[%emt 0:02:05]} gxf5 {[%emt 0:00:12]} 39. Qc3+ {[%emt 0:00:40]} Kh6 {[%emt 0:00:57]} 40. Qd2+ {[%emt 0:00:00]} Kg7 {[%emt 0:00:00]} 41. Qc3+ {[%emt 0:07:09]} Kh6 {[%emt 0:05:49]} 42. Rf3 {[%emt 0:14:52]} f4 {[%emt 0:06:31]} 43. Rd3 {[%emt 0:04:31]} Kg6 {[%emt 0:02:08]} 44. Rd5 {[%emt 0:02:25]} Qf2 {[%emt 0:06:58]} 45. Qd3+ {[%emt 0:01:19]} Kg7 {[%emt 0:00:13]} 46. Qc3+ {[%emt 0:00:29]} Kg6 {[%emt 0:00:58]} 47. Qd3+ {[%emt 0:00:40]} Kg7 {[%emt 0:00:19]} 48. Qc3+ {[%emt 0:01:11]} Kg8 {[%emt 0:04:07]} 49. Rd1 {[%emt 0:01:37]} f3 {[%emt 0:02:39]} 50. Qd2 {[%emt 0:00:09]} Qg3 {[%emt 0:00:52]} 51. d8=Q+ {[%emt 0:01:01]} Bxd8 {[%emt 0:01:27]} 52. Qh2 {[%emt 0:00:07]} Qh4 {[%emt 0:01:48]} 53. Rf1 {[%emt 0:00:31]} Bc7 {[%emt 0:00:21]} 0-1

[Event "Reykjavik Open 2022"]
[Site "Reykjavik"]
[Date "2022.04.06"]
[Round "1.30"]
[White "Mahajan, Rushaan"]
[Black "Korley, Kassa"]
[Result "0-1"]
[ECO "E07"]
[WhiteElo "2101"]
[BlackElo "2399"]
[Annotator "RC"]
[PlyCount "112"]
[EventDate "2022.04.06"]
[EventCountry "ISL"]
[SourceTitle "playchess.com"]
[Source "ChessBase"]
[SourceQuality "1"]
[TimeControl "40/5400+30:1800+30"]

1. Nf3 {[%emt 0:00:04]} d5 {[%emt 0:00:38]} 2. g3 {[%emt 0:00:12]} Nf6 {[%emt 0:00:34]} 3. Bg2 {[%emt 0:00:07]} e6 {[%emt 0:00:11]} 4. c4 {[%emt 0:00:08]} Be7 {[%emt 0:00:01]} 5. d4 {[%emt 0:00:11]} O-O {[%emt 0:00:07]} 6. Nc3 {[%emt 0:00:03]} c6 {[%emt 0:14:10]} 7. O-O {[%emt 0:01:31]} Nbd7 {[%emt 0:00:04]} 8. b3 {[%emt 0:00:51]} b6 {[%emt 0:07:44]} 9. Qd3 {[%emt 0:02:30]} Ba6 {[%emt 0:05:37]} 10. Nd2 {[%emt 0:10:46]} c5 {[%emt 0:07:15]} 11. dxc5 {[%emt 0:13:35]} Bxc5 {[%emt 0:08:32]} 12. Qf3 {[%emt 0:08:43]} Ne5 {[%emt 0:05:58]} 13. Qf4 {[%emt 0:00:25]} Ng6 {[%emt 0:04:18]} 14. Qf3 {[%emt 0:02:19]} Rc8 {[%emt 0:00:24]} 15. cxd5 {[%emt 0:09:20]} Bd4 {[%emt 0:04:11]} 16. Bb2 {[%emt 0:04:53]} Nxd5 {[%emt 0:04:59]} 17. Na4 {[%emt 0:04:36]} Bxb2 {[%emt 0:01:25]} 18. Nxb2 {[%emt 0:01:01]} Rc3 {[%emt 0:06:02]} 19. Nd3 {[%emt 0:04:55]} Ne5 {[%emt 0:00:44]} 20. Qh5 {[%emt 0:05:30]} Nxd3 {[%emt 0:00:20]} 21. exd3 {[%emt 0:00:09]} Nf6 {[%emt 0:05:08]} 22. Qh4 {[%emt 0:07:54]} Rxd3 {[%emt 0:02:39]} 23. Qa4 {[%emt 0:01:11]} Rxd2 {[%emt 0:00:38]} 24. Qxa6 {[%emt 0:00:02]} Qd4 {[%emt 0:02:31]} 25. Qc4 {[%emt 0:10:49]} Qxc4 {[%emt 0:00:59]} 26. bxc4 {[%emt 0:00:00]} Rc8 {[%emt 0:01:11]} 27. Rfc1 {[%emt 0:02:37]} g5 {[%emt 0:04:56]} 28. h3 {[%emt 0:04:24]} Rc5 {[%emt 0:02:17]} 29. Rc3 {[%emt 0:02:29]} Nd7 {[%emt 0:00:53]} 30. Ra3 {[%emt 0:03:22]} a5 {[%emt 0:01:16]} 31. Rc3 {[%emt 0:00:17]} b5 {[%emt 0:00:39]} 32. Rac1 {[%emt 0:01:01]} b4 {[%emt 0:01:53]} 33. R3c2 {[%emt 0:00:20]} Rd4 {[%emt 0:01:58]} 34. Bf1 {[%emt 0:00:25]} Nb6 {[%emt 0:01:12]} 35. Be2 {[%emt 0:00:15]} Na4 {[%emt 0:00:12]} 36. Kf1 {[%emt 0:00:13]} Nc3 {[%emt 0:02:36]} 37. Ke1 {[%emt 0:00:21]} Re4 {[%emt 0:00:37]} 38. f3 {[%emt 0:01:14]} Rd4 {[%emt 0:02:41]} 39. a3 {[%emt 0:00:43]} Nxe2 {[%emt 0:00:36]} 40. Kxe2 {[%emt 0:00:00]} b3 {[%emt 0:00:00]} 41. Ke3 {[%emt 0:03:03]} e5 {[%emt 0:00:59]} 42. Rc3 {[%emt 0:03:44]} a4 {[%emt 0:00:06]} 43. g4 {[%emt 0:00:11]} Kg7 {[%emt 0:00:18]} 44. Ke2 {[%emt 0:00:01]} Kg6 {[%emt 0:00:37]} 45. Ke3 {[%emt 0:00:05]} h5 {[%emt 0:00:04]} 46. Ke2 {[%emt 0:02:19]} f5 {[%emt 0:00:18]} 47. Rd3 {[%emt 0:01:08]} hxg4 {[%emt 0:04:18]} 48. hxg4 {[%emt 0:00:15]} fxg4 {[%emt 0:06:01]} 49. Rxd4 {[%emt 0:01:40]} gxf3+ {[%emt 0:00:22]} 50. Kxf3 {[%emt 0:00:02]} exd4 {[%emt 0:00:08]} 51. Ke4 {[%emt 0:00:04]} b2 {[%emt 0:00:34]} 52. Rb1 {[%emt 0:00:10]} Rxc4 {[%emt 0:00:04]} 53. Rxb2 {[%emt 0:00:05]} Rc3 {[%emt 0:00:20]} 54. Kxd4 {[%emt 0:01:11]} Rxa3 {[%emt 0:00:04]} 55. Rb6+ {[%emt 0:00:50]} Kh5 {[%emt 0:00:16]} 56. Ra6 {[%emt 0:00:04]} Rf3 {[%emt 0:00:43]} 0-1

[Event "Reykjavik Open 2022"]
[Site "Reykjavik"]
[Date "2022.04.06"]
[Round "1.31"]
[White "Baskin, Robert"]
[Black "Kracht, Raphael"]
[Result "1/2-1/2"]
[ECO "C65"]
[WhiteElo "2383"]
[BlackElo "2119"]
[Annotator "RC"]
[PlyCount "109"]
[EventDate "2022.04.06"]
[EventCountry "ISL"]
[SourceTitle "playchess.com"]
[Source "ChessBase"]
[SourceQuality "1"]
[TimeControl "40/5400+30:1800+30"]

1. e4 {[%emt 0:00:08]} e5 {[%emt 0:00:38]} 2. Nf3 {[%emt 0:00:27]} Nc6 {[%emt 0:00:05]} 3. Bb5 {[%emt 0:00:42]} Nf6 {[%emt 0:00:07]} 4. d3 {[%emt 0:04:05]} Bc5 {[%emt 0:00:17]} 5. Bxc6 {[%emt 0:03:35]} dxc6 {[%emt 0:00:31]} 6. Nbd2 {[%emt 0:00:08]} Qe7 {[%emt 0:06:41]} 7. Nc4 {[%emt 0:05:10]} Bd6 {[%emt 0:01:56]} 8. Qe2 {[%emt 0:04:26]} h6 {[%emt 0:07:04]} 9. Bd2 {[%emt 0:02:33]} c5 {[%emt 0:11:35]} 10. Bc3 {[%emt 0:05:11]} Nd7 {[%emt 0:02:01]} 11. a4 {[%emt 0:05:17]} b6 {[%emt 0:01:53]} 12. Ne3 {[%emt 0:03:02]} Nf6 {[%emt 0:01:16]} 13. Nd2 {[%emt 0:05:40]} O-O {[%emt 0:11:49]} 14. g4 {[%emt 0:10:22]} Nh7 {[%emt 0:14:46]} 15. h4 {[%emt 0:03:58]} g6 {[%emt 0:08:59]} 16. Ndc4 {[%emt 0:01:54]} Re8 {[%emt 0:04:44]} 17. h5 {[%emt 0:02:10]} g5 {[%emt 0:02:15]} 18. Rh3 {[%emt 0:02:59]} c6 {[%emt 0:02:18]} 19. Rf3 {[%emt 0:04:25]} Bc7 {[%emt 0:00:42]} 20. Nf5 {[%emt 0:00:57]} Bxf5 {[%emt 0:02:27]} 21. Rxf5 {[%emt 0:00:17]} f6 {[%emt 0:00:26]} 22. Ne3 {[%emt 0:04:35]} Nf8 {[%emt 0:01:45]} 23. Rf3 {[%emt 0:07:31]} Kh7 {[%emt 0:00:25]} 24. Nf5 {[%emt 0:00:51]} Qd8 {[%emt 0:02:36]} 25. Qd1 {[%emt 0:02:27]} Ne6 {[%emt 0:00:17]} 26. Qb1 {[%emt 0:00:38]} a5 {[%emt 0:01:11]} 27. Qa2 {[%emt 0:02:59]} Qd7 {[%emt 0:00:26]} 28. Kf1 {[%emt 0:01:30]} Rf8 {[%emt 0:00:33]} 29. Bd2 {[%emt 0:02:39]} Nd4 {[%emt 0:01:49]} 30. Nxd4 {[%emt 0:00:13]} exd4 {[%emt 0:00:28]} 31. Rf5 {[%emt 0:00:06]} Rae8 {[%emt 0:02:18]} 32. Kg2 {[%emt 0:05:39]} Re5 {[%emt 0:01:12]} 33. Rh1 {[%emt 0:01:16]} Rxf5 {[%emt 0:00:47]} 34. gxf5 {[%emt 0:00:26]} Bf4 {[%emt 0:03:37]} 35. Be1 {[%emt 0:08:25]} Qf7 {[%emt 0:00:04]} 36. Qxf7+ {[%emt 0:00:19]} Rxf7 {[%emt 0:00:06]} 37. f3 {[%emt 0:00:39]} Rb7 {[%emt 0:02:49]} 38. Bg3 {[%emt 0:00:52]} Be3 {[%emt 0:01:07]} 39. Bd6 {[%emt 0:00:38]} Kg8 {[%emt 0:01:00]} 40. Rf1 {[%emt 0:00:00]} Rd7 {[%emt 0:00:00]} 41. Bg3 {[%emt 0:02:06]} Kf8 {[%emt 0:06:29]} 42. Ra1 {[%emt 0:00:56]} Ke8 {[%emt 0:09:54]} 43. Kf1 {[%emt 0:01:57]} Rg7 {[%emt 0:02:23]} 44. Ra3 {[%emt 0:04:20]} Rb7 {[%emt 0:04:14]} 45. Ke2 {[%emt 0:01:06]} Kd7 {[%emt 0:03:28]} 46. Ra1 {[%emt 0:07:27]} Kc8 {[%emt 0:04:24]} 47. c4 {[%emt 0:05:13]} Kd8 {[%emt 0:03:39]} 48. Kd1 {[%emt 0:01:03]} Rg7 {[%emt 0:01:39]} 49. Kc2 {[%emt 0:00:16]} Bf4 {[%emt 0:01:02]} 50. Bf2 {[%emt 0:02:18]} Kd7 {[%emt 0:00:04]} 51. Rg1 {[%emt 0:01:00]} Kd6 {[%emt 0:00:08]} 52. Rg4 {[%emt 0:03:19]} Ke5 {[%emt 0:00:36]} 53. Be1 {[%emt 0:00:07]} Rb7 {[%emt 0:00:58]} 54. Rg2 {[%emt 0:00:52]} Be3 {[%emt 0:01:20]} 55. Bg3+ {[%emt 0:03:43]} 1/2-1/2